fUSD/lending_fUSD_20250307
["ID","MTS","AMOUNT","RATE_DAILY","PERIOD"]
[355582285,1741324240647,-10545.26,9.795e-05,2]
[355582286,1741324240655,-3507.09,9.795e-05,2]
[355582287,1741324240664,-1545.98,9.795e-05,2]
[355582288,1741324240674,-500.0,9.795e-05,2]
[355582289,1741324240684,-874.89,9.795e-05,2]
[355582290,1741324240693,-2180.26,9.795e-05,2]
[355582291,1741324240703,-1511.82,9.795e-05,2]
[355582292,1741324240713,-1914.75,9.795e-05,2]
[355582293,1741324240723,-547.29,9.795e-05,2]
[355582294,1741324240732,-1450.59,9.795e-05,2]
[355582295,1741324240742,-629.83,9.795e-05,2]
[355582296,1741324240751,-500.0,9.795e-05,2]
[355582297,1741324240762,-190.73458911,9.795e-05,2]
[355582298,1741324240771,-500.0,9.795e-05,2]
[355582299,1741324240780,-154.22483026,9.795e-05,2]
[355582300,1741324240789,-500.0,9.795e-05,2]
[355582301,1741324240799,-500.0,9.795e-05,2]
[355582302,1741324240808,-500.0,9.795e-05,2]
[355582303,1741324240818,-500.0,9.796e-05,2]
[355582304,1741324240827,-508.96578328,9.796e-05,2]
[355582305,1741324240836,-315.90062705,9.796e-05,2]
[355582306,1741324240876,-209.78394141,9.796e-05,2]
[355582307,1741324240885,-500.0,9.796e-05,2]
[355582308,1741324240895,-524.23816856,9.796e-05,2]
[355582309,1741324240908,-458.85549224,9.796e-05,2]
[355582310,1741324240917,-500.0,9.796e-05,2]
[355582311,1741324240927,-505.57803567,9.796e-05,2]
[355582312,1741324240936,-91.54436212,9.796e-05,2]
[355582313,1741324241212,-408.45563788,9.796e-05,2]
[355582314,1741324241222,-558.57024003,9.796e-05,2]
[355582315,1741324241231,-7.52938363,9.796e-05,2]
[355582326,1741324244593,-451.22072221,9.059e-05,2]
[355582327,1741324244722,-569.04132258,9.059e-05,2]
[355582328,1741324246457,-763.42485382,9.059e-05,2]
[355582329,1741324246566,-216.31310139,9.059e-05,2]
[355582330,1741324246576,-494.35947797,9.796e-05,2]
[355582331,1741324246586,-237.64758376,9.796e-05,2]
[355582332,1741324246596,-288.48757566,9.796e-05,2]
[355582333,1741324246605,-500.0,9.796e-05,2]
[355582334,1741324246615,-500.0,9.796e-05,2]
[355582335,1741324246624,-88.67550287,9.796e-05,2]
[355582336,1741324246637,-411.32449713,9.796e-05,2]
[355582337,1741324246647,-501.86151436,9.796e-05,2]
[355582338,1741324246656,-500.0,9.796e-05,2]
[355582339,1741324246666,-500.0,9.796e-05,2]
[355582340,1741324246675,-500.0,9.796e-05,2]
[355582341,1741324246685,-500.0,9.796e-05,2]
[355582342,1741324246699,-500.0,9.796e-05,2]
[355582343,1741324246709,-290.28998851,9.796e-05,2]
[355582344,1741324246740,-209.71001149,9.796e-05,2]
[355582345,1741324246750,-500.0,9.796e-05,2]
[355582346,1741324246759,-643.58733266,9.796e-05,2]
[355582347,1741324246769,-500.0,9.796e-05,2]
[355582348,1741324246779,-500.0,9.796e-05,2]
[355582349,1741324246788,-500.0,9.796e-05,2]
[355582350,1741324246798,-500.0,9.796e-05,2]
[355582351,1741324246808,-500.0,9.796e-05,2]
[355582352,1741324246818,-500.0,9.796e-05,2]
[355582353,1741324246827,-639.24,9.796e-05,2]
[355582354,1741324246837,-500.0,9.796e-05,2]
[355582355,1741324246847,-620.76690282,9.796e-05,2]
[355582370,1741325051850,3235.77683844,0.0002,120]
[355582411,1741325405214,-154.341841,8.178e-05,2]
[355582412,1741325405247,-336.59831909,8.219e-05,2]
[355582444,1741325431674,-912.50662384,8.219e-05,2]
[355582446,1741325431686,-710.48505707,8.219e-05,2]
[355582448,1741325431695,-150.0,8.407e-05,2]
[355582450,1741325431705,-23900.0,8.415e-05,2]
[355582452,1741325431715,-491.6,8.415e-05,2]
[355582453,1741325431724,-178.0,8.415e-05,2]
[355582454,1741325431734,-2000.0,8.507e-05,2]
[355582455,1741325431743,-250.0,8.595e-05,2]
[355582456,1741325431752,-168.89,8.67e-05,2]
[355582457,1741325431761,-1000.0,8.676e-05,2]
[355582458,1741325431772,-441.44,8.741e-05,2]
[355582459,1741325431781,-150.0,8.989e-05,2]
[355582460,1741325431791,-268.31,8.99e-05,2]
[355582461,1741325431802,-150.0,8.996e-05,2]
[355582462,1741325431811,-3966.59,8.996e-05,2]
[355582463,1741325431821,-550.0,9.005e-05,2]
[355582464,1741325431830,-168.89,9.017e-05,2]
[355582465,1741325431840,-778.22,9.02e-05,2]
[355582466,1741325431849,-250.0,9.025e-05,2]
[355582467,1741325431859,-157.78,9.041e-05,2]
[355582468,1741325431868,-150.0,9.041e-05,2]
[355582469,1741325431877,-150.0,9.098e-05,2]
[355582470,1741325431886,-150.0,9.098e-05,2]
[355582471,1741325431895,-440.59,9.098e-05,2]
[355582472,1741325431905,-168.89,9.364e-05,2]
[355582473,1741325431914,-150.0,9.44e-05,2]
[355582474,1741325431923,-491.6,9.466e-05,2]
[355582475,1741325431933,-150.0,9.48e-05,2]
[355582476,1741325431942,-150.0,9.48e-05,2]
[355582477,1741325431951,-44850.77005536,9.5e-05,2]
[355582478,1741325431961,-150.0,9.52e-05,2]
[355582480,1741325431970,-150.0,9.562e-05,7]
[355582482,1741325431979,-4868.053,9.596e-05,2]
[355582484,1741325431989,-150.12,9.662e-05,2]
[355582486,1741325431998,-150.0,9.662e-05,2]
[355582488,1741325432007,-150.0,9.662e-05,2]
[355582490,1741325432016,-150.0,9.662e-05,2]
[355582491,1741325432025,-344.75,9.671e-05,2]
[355582493,1741325432035,-1172.7503,9.695e-05,2]
[355582495,1741325432044,-223.5287,9.696e-05,2]
[355582497,1741325432054,-12719.846,9.696e-05,2]
[355582499,1741325432063,-10955.1054,9.696e-05,2]
[355582502,1741325432073,-386.8371,9.696e-05,2]
[355582503,1741325432082,-1000.0,9.696e-05,2]
[355582504,1741325432091,-41077.159,9.696e-05,2]
[355582505,1741325432101,-150.0,9.7e-05,2]
[355582506,1741325432110,-150.0,9.7e-05,2]
[355582507,1741325432120,-12057.55,9.7e-05,2]
[355582508,1741325432129,-290.0,9.76e-05,2]
[355582509,1741325432139,-1000.0,9.76e-05,2]
[355582510,1741325432149,-196.0,9.79e-05,2]
[355582511,1741325432159,-196.0,9.79e-05,2]
[355582512,1741325432169,-2032.0,9.79e-05,2]
[355582513,1741325432178,-1278.0,9.79e-05,2]
[355582514,1741325432188,-642.0,9.79e-05,2]
[355582515,1741325432197,-654.5,9.792e-05,2]
[355582516,1741325432207,-500.0,9.792e-05,2]
[355582517,1741325432216,-500.0,9.792e-05,2]
[355582518,1741325432226,-500.0,9.792e-05,2]
[355582519,1741325432235,-3576.04,9.793e-05,2]
[355582520,1741325432245,-899.97,9.793e-05,2]
[355582521,1741325432254,-2089.42,9.793e-05,2]
[355582522,1741325432263,-1933.36,9.793e-05,2]
[355582523,1741325432272,-546.11,9.793e-05,2]
[355582524,1741325432282,-500.0,9.793e-05,2]
[355582525,1741325432291,-507.95738118,9.793e-05,2]
[355582526,1741325432301,-500.0,9.793e-05,2]
[355582527,1741325432312,-500.0,9.793e-05,2]
[355582528,1741325432323,-500.0,9.793e-05,2]
[355582529,1741325432333,-500.0,9.793e-05,2]
[355582530,1741325432342,-1107.97,9.793e-05,2]
[355582531,1741325432351,-8911.73,9.793e-05,2]
[355582532,1741325432362,-1215.37,9.793e-05,2]
[355582533,1741325432372,-724.59,9.793e-05,2]
[355582534,1741325432381,-2117.18,9.793e-05,2]
[355582535,1741325432392,-764.48,9.793e-05,2]
[355582536,1741325432401,-3053.67,9.793e-05,2]
[355582537,1741325432411,-3036.78,9.793e-05,2]
[355582538,1741325432421,-5348.11,9.793e-05,2]
[355582539,1741325432430,-2782.5,9.793e-05,2]
[355582540,1741325432440,-8701.69,9.793e-05,2]
[355582541,1741325432450,-1457.99,9.793e-05,2]
[355582542,1741325432459,-2031.52,9.793e-05,2]
[355582543,1741325432469,-2082.39,9.793e-05,2]
[355582544,1741325432479,-1908.3,9.793e-05,2]
[355582545,1741325432488,-2928.53,9.793e-05,2]
[355582546,1741325432498,-1316.27,9.793e-05,2]
[355582547,1741325432507,-3041.62,9.793e-05,2]
[355582548,1741325432517,-2533.6,9.793e-05,2]
[355582549,1741325432527,-779.63,9.793e-05,2]
[355582550,1741325432536,-1079.26,9.793e-05,2]
[355582551,1741325432546,-1970.12,9.793e-05,2]
[355582552,1741325432555,-500.0,9.793e-05,2]
[355582553,1741325432565,-4571.01,9.793e-05,2]
[355582554,1741325432574,-4396.99,9.793e-05,2]
[355582555,1741325432583,-2876.22,9.793e-05,2]
[355582556,1741325432593,-3068.01,9.793e-05,2]
[355582557,1741325432602,-3072.32,9.793e-05,2]
[355582558,1741325432612,-875.94,9.793e-05,2]
[355582559,1741325432622,-5113.6,9.793e-05,2]
[355582560,1741325432631,-1562.52,9.793e-05,2]
[355582561,1741325432640,-7615.51,9.793e-05,2]
[355582562,1741325432649,-500.0,9.793e-05,2]
[355582563,1741325432659,-4600.64,9.793e-05,2]
[355582564,1741325432668,-500.0,9.793e-05,2]
[355582565,1741325432678,-2199.19,9.793e-05,2]
[355582566,1741325432688,-3136.61,9.793e-05,2]
[355582567,1741325432698,-2824.19,9.793e-05,2]
[355582568,1741325432707,-500.0,9.793e-05,2]
[355582569,1741325432717,-2929.55,9.793e-05,2]
[355582570,1741325432726,-752.77,9.793e-05,2]
[355582571,1741325432736,-1970.69,9.793e-05,2]
[355582572,1741325432746,-3430.56,9.793e-05,2]
[355582573,1741325432755,-13301.96,9.793e-05,2]
[355582574,1741325432766,-11619.7,9.793e-05,2]
[355582575,1741325432775,-1595.64,9.793e-05,2]
[355582576,1741325432785,-500.0,9.794e-05,2]
[355582577,1741325432797,-1538.3,9.794e-05,2]
[355582578,1741325432806,-1465.25,9.794e-05,2]
[355582579,1741325432816,-908.04,9.794e-05,2]
[355582580,1741325432825,-500.0,9.794e-05,2]
[355582581,1741325432834,-652.65,9.794e-05,2]
[355582582,1741325432844,-854.05,9.794e-05,2]
[355582583,1741325432853,-500.0,9.794e-05,2]
[355582584,1741325432863,-500.0,9.794e-05,2]
[355582585,1741325432872,-500.0,9.794e-05,2]
[355582586,1741325432882,-471.38755828,9.794e-05,2]
[355582587,1741325432891,-1388.75,9.794e-05,2]
[355582588,1741325432900,-212.10074227,9.794e-05,2]
[355582589,1741325432909,-507.24458318,9.794e-05,2]
[355582590,1741325432918,-731.07,9.794e-05,2]
[355582591,1741325432928,-500.0,9.794e-05,2]
[355582592,1741325432937,-500.0,9.794e-05,2]
[355582593,1741325432946,-1226.69,9.794e-05,2]
[355582594,1741325432955,-500.0,9.794e-05,2]
[355582595,1741325432965,-575.06,9.794e-05,2]
[355582596,1741325432974,-560.02,9.794e-05,2]
[355582597,1741325432983,-544.71482504,9.794e-05,2]
[355582598,1741325432993,-500.0,9.794e-05,2]
[355582599,1741325433002,-500.0,9.794e-05,2]
[355582600,1741325433011,-581.71,9.794e-05,2]
[355582601,1741325433021,-1000.86,9.794e-05,2]
[355582602,1741325433031,-500.0,9.794e-05,2]
[355582603,1741325433041,-500.0,9.794e-05,2]
[355582604,1741325433053,-622.41705974,9.794e-05,2]
[355582605,1741325433063,-500.0,9.794e-05,2]
[355582606,1741325433073,-505.17496142,9.794e-05,2]
[355582607,1741325433083,-500.0,9.794e-05,2]
[355582608,1741325433093,-888.85,9.794e-05,2]
[355582609,1741325433103,-500.0,9.794e-05,2]
[355582610,1741325433112,-510.7,9.794e-05,2]
[355582611,1741325433122,-500.0,9.794e-05,2]
[355582612,1741325433131,-500.0,9.794e-05,2]
[355582613,1741325433141,-500.0,9.794e-05,2]
[355582614,1741325433150,-500.0,9.794e-05,2]
[355582615,1741325433159,-946.37,9.794e-05,2]
[355582616,1741325433168,-509.7,9.794e-05,2]
[355582617,1741325433178,-500.0,9.794e-05,2]
[355582618,1741325433187,-1190.9,9.794e-05,2]
[355582619,1741325433196,-500.0,9.794e-05,2]
[355582620,1741325433206,-500.0,9.794e-05,2]
[355582621,1741325433216,-500.0,9.794e-05,2]
[355582622,1741325433225,-1077.76,9.794e-05,2]
[355582623,1741325433235,-500.0,9.794e-05,2]
[355582624,1741325433244,-500.0,9.794e-05,2]
[355582625,1741325433254,-500.0,9.794e-05,2]
[355582626,1741325433264,-500.0,9.794e-05,2]
[355582627,1741325433274,-500.0,9.794e-05,2]
[355582628,1741325433285,-500.0,9.794e-05,2]
[355582629,1741325433296,-500.0,9.794e-05,2]
[355582630,1741325433307,-500.0,9.794e-05,2]
[355582631,1741325433323,-1150.67,9.794e-05,2]
[355582632,1741325433333,-500.0,9.794e-05,2]
[355582633,1741325433343,-500.0,9.794e-05,2]
[355582634,1741325433354,-500.0,9.794e-05,2]
[355582635,1741325433364,-500.0,9.794e-05,2]
[355582636,1741325433373,-500.0,9.794e-05,2]
[355582637,1741325433383,-1181.97,9.794e-05,2]
[355582638,1741325433394,-500.0,9.794e-05,2]
[355582639,1741325433403,-500.0,9.794e-05,2]
[355582640,1741325433413,-1652.35,9.794e-05,2]
[355582641,1741325433423,-924.59,9.794e-05,2]
[355582642,1741325433433,-999.57,9.794e-05,2]
[355582643,1741325433442,-500.0,9.794e-05,2]
[355582644,1741325433452,-500.0,9.794e-05,2]
[355582645,1741325433462,-500.0,9.794e-05,2]
[355582646,1741325433472,-500.0,9.794e-05,2]
[355582647,1741325433482,-500.0,9.794e-05,2]
[355582648,1741325433492,-500.0,9.794e-05,2]
[355582649,1741325433502,-1168.05,9.794e-05,2]
[355582650,1741325433512,-608.06,9.794e-05,2]
[355582651,1741325433521,-1570.84,9.794e-05,2]
[355582652,1741325433530,-526.90736749,9.794e-05,2]
[355582653,1741325433540,-500.0,9.794e-05,2]
[355582654,1741325433550,-1206.88,9.794e-05,2]
[355582655,1741325433560,-500.0,9.794e-05,2]
[355582656,1741325433570,-564.9,9.794e-05,2]
[355582657,1741325433579,-500.0,9.794e-05,2]
[355582658,1741325433589,-573.78922938,9.794e-05,2]
[355582659,1741325433598,-2357.26,9.794e-05,2]
[355582660,1741325433608,-1212.56,9.794e-05,2]
[355582661,1741325433617,-500.0,9.794e-05,2]
[355582662,1741325433627,-500.0,9.794e-05,2]
[355582663,1741325433636,-1227.95,9.794e-05,2]
[355582664,1741325433646,-1854.86,9.794e-05,2]
[355582665,1741325433656,-1197.5,9.794e-05,2]
[355582666,1741325433666,-500.0,9.794e-05,2]
[355582667,1741325433675,-500.0,9.794e-05,2]
[355582668,1741325433685,-500.0,9.794e-05,2]
[355582669,1741325433695,-1105.19,9.794e-05,2]
[355582670,1741325433705,-500.0,9.794e-05,2]
[355582671,1741325433714,-1785.86,9.794e-05,2]
[355582672,1741325433724,-618.04,9.794e-05,2]
[355582673,1741325433734,-1549.27,9.794e-05,2]
[355582674,1741325433744,-1997.58,9.794e-05,2]
[355582675,1741325433753,-500.0,9.794e-05,2]
[355582676,1741325433763,-500.0,9.794e-05,2]
[355582677,1741325433772,-1643.5,9.794e-05,2]
[355582678,1741325433782,-2573.6,9.794e-05,2]
[355582679,1741325433791,-317.18713814,9.794e-05,2]
[355582680,1741325433821,-1195.04286186,9.794e-05,2]
[355582681,1741325433831,-1075.96,9.794e-05,2]
[355582682,1741325433841,-1354.03,9.794e-05,2]
[355582683,1741325433850,-4230.77,9.794e-05,2]
[355582684,1741325433860,-951.33,9.794e-05,2]
[355582685,1741325433871,-3276.78519775,9.794e-05,2]
[355582686,1741325433887,-113.58480225,9.794e-05,2]
[355582687,1741325433897,-2210.14,9.794e-05,2]
[355582688,1741325433907,-500.0,9.794e-05,2]
[355582689,1741325433916,-21046.52,9.794e-05,2]
[355582690,1741325433926,-1058.04,9.794e-05,2]
[355582691,1741325433935,-500.0,9.794e-05,2]
[355582692,1741325433945,-500.0,9.794e-05,2]
[355582693,1741325433954,-500.0,9.794e-05,2]
[355582694,1741325433964,-1935.92,9.794e-05,2]
[355582695,1741325433973,-2394.07,9.794e-05,2]
[355582696,1741325433983,-5528.91,9.794e-05,2]
[355582697,1741325433992,-500.0,9.794e-05,2]
[355582698,1741325434002,-797.17,9.794e-05,2]
[355582699,1741325434011,-1672.83,9.794e-05,2]
[355582700,1741325434020,-1000.3,9.794e-05,2]
[355582701,1741325434030,-502.01895535,9.794e-05,2]
[355582702,1741325434039,-500.0,9.794e-05,2]
[355582703,1741325434051,-1219.07,9.794e-05,2]
[355582704,1741325434061,-787.33,9.794e-05,2]
[355582705,1741325434070,-500.0,9.794e-05,2]
[355582706,1741325434080,-6886.56,9.794e-05,2]
[355582707,1741325434089,-516.0696241,9.794e-05,2]
[355582708,1741325434099,-500.0,9.794e-05,2]
[355582709,1741325434109,-6108.73,9.794e-05,2]
[355582710,1741325434118,-2950.89,9.794e-05,2]
[355582711,1741325434128,-2299.18,9.794e-05,2]
[355582712,1741325434138,-500.0,9.794e-05,2]
[355582713,1741325434147,-2033.65,9.794e-05,2]
[355582714,1741325434157,-17850.49,9.794e-05,2]
[355582715,1741325434166,-500.0,9.794e-05,2]
[355582716,1741325434176,-502.94732231,9.794e-05,2]
[355582717,1741325434186,-500.0,9.794e-05,2]
[355582718,1741325434195,-503.57146997,9.794e-05,2]
[355582719,1741325434205,-3623.47,9.794e-05,2]
[355582720,1741325434215,-500.0,9.794e-05,2]
[355582721,1741325434225,-500.0,9.794e-05,2]
[355582722,1741325434234,-500.0,9.794e-05,2]
[355582723,1741325434244,-563.54113685,9.794e-05,2]
[355582724,1741325434254,-505.04,9.794e-05,2]
[355582725,1741325434263,-500.0,9.794e-05,2]
[355582726,1741325434273,-1196.3,9.794e-05,2]
[355582727,1741325434283,-2137.53,9.794e-05,2]
[355582728,1741325434292,-560.26515898,9.794e-05,2]
[355582729,1741325434304,-2376.35,9.794e-05,2]
[355582730,1741325434316,-1212.44,9.794e-05,2]
[355582731,1741325434326,-589.42544057,9.794e-05,2]
[355582732,1741325434336,-611.25,9.794e-05,2]
[355582733,1741325434345,-1814.08,9.794e-05,2]
[355582734,1741325434357,-1829.2,9.794e-05,2]
[355582735,1741325434367,-500.0,9.794e-05,2]
[355582736,1741325434376,-784.88,9.794e-05,2]
[355582737,1741325434385,-4368.52,9.794e-05,2]
[355582738,1741325434396,-500.0,9.794e-05,2]
[355582739,1741325434406,-500.0,9.794e-05,2]
[355582740,1741325434415,-500.0,9.794e-05,2]
[355582741,1741325434425,-2822.75,9.794e-05,2]
[355582742,1741325434435,-500.0,9.794e-05,2]
[355582743,1741325434445,-1164.88,9.794e-05,2]
[355582744,1741325434455,-1930.32,9.794e-05,2]
[355582745,1741325434465,-500.0,9.794e-05,2]
[355582746,1741325434474,-124.98336473,9.794e-05,2]
[355582747,1741325437590,-150.0,9.79e-05,2]
[355582748,1741325437600,-1579.74,9.793e-05,2]
[355582749,1741325437610,-872.95663527,9.794e-05,2]
[355582750,1741325437620,-479.50265856,9.794e-05,2]
[355582751,1741325437629,-4137.22,9.794e-05,2]
[355582752,1741325437638,-500.0,9.794e-05,2]
[355582753,1741325437647,-500.0,9.794e-05,2]
[355582754,1741325437657,-620.39390525,9.794e-05,2]
[355582755,1741325437669,-2222.49609475,9.794e-05,2]
[355582756,1741325437678,-1306.97,9.794e-05,2]
[355582757,1741325437688,-500.0,9.794e-05,2]
[355582758,1741325437698,-276.9574352,9.794e-05,2]
[355582759,1741325437714,-1359.64087818,9.794e-05,2]
[355582760,1741325437849,-971.04759,9.794e-05,2]
[355582777,1741325439534,-500.0,9.792e-05,2]
[355582778,1741325439543,-935.7055609,9.793e-05,2]
[355582779,1741325439654,-2491.3344391,9.793e-05,2]
[355582780,1741325439664,-1119.70409662,9.794e-05,2]
[355582781,1741325439673,-504.16,9.794e-05,2]
[355582782,1741325439682,-1606.16,9.794e-05,2]
[355582783,1741325439691,-603.3868661,9.794e-05,2]
[355582784,1741325439700,-95.81459818,9.794e-05,2]
[355582785,1741325439837,-495.72755887,9.794e-05,2]
[355582786,1741325439903,-434.74,9.794e-05,2]
[355582804,1741325442754,-3931.0,9.79e-05,2]
[355582805,1741325442764,-500.0,9.792e-05,2]
[355582806,1741325442773,-2002.36,9.793e-05,2]
[355582807,1741325442783,-20.12784295,9.794e-05,2]
[355582808,1741325442792,-167.32505033,9.794e-05,2]
[355582809,1741325442802,-2263.76802125,9.794e-05,2]
[355582810,1741325443798,-279.09938607,9.794e-05,2]
[355582817,1741325445488,-870.21,9.792e-05,2]
[355582818,1741325445498,-727.89259268,9.794e-05,2]
[355582819,1741325445507,-500.0,9.794e-05,2]
[355582820,1741325445516,-2259.04,9.794e-05,2]
[355582821,1741325445527,-250.9812386,9.794e-05,2]
[355582822,1741325445536,-541.36,9.794e-05,2]
[355582823,1741325445545,-523.11854831,9.794e-05,2]
[355582824,1741325445554,-500.0,9.795e-05,2]
[355582825,1741325445564,-500.0,9.795e-05,2]
[355582826,1741325445574,-500.0,9.795e-05,2]
[355582827,1741325445584,-508.35787133,9.795e-05,2]
[355582828,1741325445594,-500.0,9.795e-05,2]
[355582829,1741325445603,-500.0,9.795e-05,2]
[355582830,1741325445613,-143.69563254,9.795e-05,2]
[355582831,1741325445666,-356.30436746,9.795e-05,2]
[355582832,1741325445675,-633.49701634,9.795e-05,2]
[355582833,1741325445685,-500.0,9.795e-05,2]
[355582834,1741325445694,-500.0,9.795e-05,2]
[355582835,1741325445703,-500.0,9.795e-05,2]
[355582836,1741325445713,-502.99348193,9.795e-05,2]
[355582837,1741325445722,-500.0,9.795e-05,2]
[355582838,1741325445732,-500.0,9.795e-05,2]
[355582839,1741325445741,-500.0,9.795e-05,2]
[355582840,1741325445751,-516.37476045,9.795e-05,2]
[355582841,1741325445760,-502.69051988,9.795e-05,2]
[355582842,1741325445769,-519.32313762,9.795e-05,2]
[355582843,1741325445779,-522.57795044,9.795e-05,2]
[355582844,1741325445788,-510.3652899,9.795e-05,2]
[355582845,1741325445798,-500.0,9.795e-05,2]
[355582846,1741325445807,-500.0,9.795e-05,2]
[355582847,1741325445816,-500.0,9.795e-05,2]
[355582848,1741325445826,-500.0,9.795e-05,2]
[355582849,1741325445835,-500.0,9.795e-05,2]
[355582850,1741325445845,-500.0,9.795e-05,2]
[355582851,1741325445854,-509.5911469,9.795e-05,2]
[355582852,1741325445863,-500.0,9.795e-05,2]
[355582853,1741325445872,-500.0,9.795e-05,2]
[355582854,1741325445881,-500.0,9.795e-05,2]
[355582855,1741325445891,-500.0,9.795e-05,2]
[355582856,1741325445900,-500.0,9.795e-05,2]
[355582858,1741325445909,-323.92223693,9.795e-05,2]
[355582860,1741325445918,-500.0,9.795e-05,2]
[355582862,1741325445927,-500.0,9.795e-05,2]
[355582864,1741325445936,-500.0,9.795e-05,2]
[355582866,1741325445946,-500.0,9.795e-05,2]
[355582868,1741325445955,-500.0,9.795e-05,2]
[355582870,1741325445964,-150.2777176,9.795e-05,2]
[355582872,1741325445973,-500.0,9.795e-05,2]
[355582874,1741325445982,-500.0,9.795e-05,2]
[355582876,1741325445991,-500.0,9.795e-05,2]
[355582878,1741325446000,-500.0,9.795e-05,2]
[355582880,1741325446009,-500.0,9.795e-05,2]
[355582881,1741325446019,-500.0,9.795e-05,2]
[355582882,1741325446028,-500.0,9.795e-05,2]
[355582883,1741325446037,-500.0,9.795e-05,2]
[355582884,1741325446046,-500.0,9.795e-05,2]
[355582885,1741325446055,-581.06071283,9.795e-05,2]
[355582886,1741325446065,-500.0,9.795e-05,2]
[355582887,1741325446074,-500.0,9.795e-05,2]
[355582888,1741325446083,-500.0,9.795e-05,2]
[355582889,1741325446092,-500.0,9.795e-05,2]
[355582890,1741325446102,-500.0,9.795e-05,2]
[355582891,1741325446111,-500.0,9.795e-05,2]
[355582892,1741325446120,-500.0,9.795e-05,2]
[355582893,1741325446130,-500.0,9.795e-05,2]
[355582894,1741325446146,-500.0,9.795e-05,2]
[355582895,1741325446160,-500.0,9.795e-05,2]
[355582896,1741325446169,-395.23228682,9.795e-05,2]
[355582897,1741325446608,-125.51619154,9.795e-05,2]
[355582898,1741325446618,-500.0,9.795e-05,2]
[355582899,1741325446628,-500.0,9.795e-05,2]
[355582900,1741325446637,-95.40061127,9.795e-05,2]
[355582901,1741325446649,-404.59938873,9.795e-05,2]
[355582902,1741325446658,-509.64249537,9.795e-05,2]
[355582903,1741325446668,-500.0,9.795e-05,2]
[355582904,1741325446677,-500.0,9.795e-05,2]
[355582905,1741325446687,-500.0,9.795e-05,2]
[355582906,1741325446697,-500.0,9.795e-05,2]
[355582907,1741325446706,-500.0,9.795e-05,2]
[355582908,1741325446715,-500.0,9.795e-05,2]
[355582909,1741325446725,-500.0,9.795e-05,2]
[355582910,1741325446733,-500.0,9.795e-05,2]
[355582911,1741325446743,-551.05,9.795e-05,2]
[355582912,1741325446752,-506.4630735,9.795e-05,2]
[355582913,1741325446761,-500.0,9.795e-05,2]
[355582914,1741325446770,-500.0,9.795e-05,2]
[355582915,1741325446779,-500.0,9.795e-05,2]
[355582916,1741325446788,-500.12,9.795e-05,2]
[355582917,1741325446797,-500.0,9.795e-05,2]
[355582918,1741325446806,-500.0,9.795e-05,2]
[355582919,1741325446815,-500.0,9.795e-05,2]
[355582920,1741325446824,-500.0,9.795e-05,2]
[355582921,1741325446833,-518.73,9.795e-05,2]
[355582922,1741325446842,-500.0,9.795e-05,2]
[355582923,1741325446852,-500.0,9.795e-05,2]
[355582924,1741325446861,-500.0,9.795e-05,2]
[355582925,1741325446871,-500.0,9.795e-05,2]
[355582926,1741325446880,-500.0,9.795e-05,2]
[355582927,1741325446890,-167.98509565,9.795e-05,2]
[355582928,1741325446899,-500.0,9.795e-05,2]
[355582929,1741325446911,-273.53394675,9.795e-05,2]
[355582930,1741325446925,-226.46605325,9.795e-05,2]
[355582931,1741325446935,-500.0,9.795e-05,2]
[355582932,1741325446945,-500.0,9.795e-05,2]
[355582933,1741325446956,-231.93749737,9.795e-05,2]
[355582934,1741325446967,-500.0,9.795e-05,2]
[355582935,1741325446978,-515.39438268,9.795e-05,2]
[355582936,1741325446988,-500.0,9.795e-05,2]
[355582937,1741325446998,-500.0,9.795e-05,2]
[355582938,1741325447007,-500.0,9.795e-05,2]
[355582939,1741325447016,-500.0,9.795e-05,2]
[355582940,1741325447025,-500.0,9.795e-05,2]
[355582941,1741325447035,-400.53909687,9.795e-05,2]
[355582942,1741325447043,-461.13989312,9.795e-05,2]
[355582943,1741325447053,-500.0,9.795e-05,2]
[355582944,1741325447063,-500.0,9.795e-05,2]
[355582945,1741325447071,-502.86058225,9.795e-05,2]
[355582946,1741325447081,-500.0,9.795e-05,2]